fUSD/lending_fUSD_20240322
["ID","MTS","AMOUNT","RATE_DAILY","PERIOD"]
[320078846,1711139463460,-500.0,0.00022191,2]
[320078847,1711139463469,-507.92172523,0.00022191,2]
[320078848,1711139463479,-599.99,0.00022191,2]
[320078849,1711139463489,-543.1,0.00022191,2]
[320078850,1711139463498,-1122.02,0.00022191,2]
[320078851,1711139463509,-500.0,0.00022191,2]
[320078852,1711139463518,-521.24,0.00022191,2]
[320078853,1711139463528,-500.0,0.00022191,2]
[320078854,1711139463538,-983.52,0.00022191,2]
[320078855,1711139463547,-500.0,0.00022191,2]
[320078856,1711139463558,-1720.77,0.00022191,2]
[320078857,1711139463567,-1687.74,0.00022191,2]
[320078858,1711139463576,-500.0,0.00022191,2]
[320078859,1711139463590,-511.42,0.00022191,2]
[320078860,1711139463600,-888.08,0.00022191,2]
[320078861,1711139463609,-500.0,0.00022191,2]
[320078862,1711139463619,-726.21,0.00022191,2]
[320078863,1711139463628,-715.91,0.00022191,2]
[320078864,1711139463639,-500.0,0.00022191,2]
[320078865,1711139463649,-500.0,0.00022191,2]
[320078866,1711139463658,-3088.37,0.00022191,2]
[320078867,1711139463667,-503.96495931,0.00022191,2]
[320078868,1711139463677,-2446.59,0.00022191,2]
[320078869,1711139463686,-503.53086903,0.00022191,2]
[320078870,1711139463695,-500.0,0.00022191,2]
[320078871,1711139463704,-500.0,0.00022191,2]
[320078872,1711139463714,-500.0,0.00022191,2]
[320078873,1711139463723,-2062.43,0.00022191,2]
[320078874,1711139463732,-647.7,0.00022191,2]
[320078875,1711139463742,-1282.39,0.00022191,2]
[320078876,1711139463751,-500.0,0.00022191,2]
[320078877,1711139463760,-500.0,0.00022191,2]
[320078878,1711139463769,-500.0,0.00022191,2]
[320078879,1711139463778,-500.0,0.00022191,2]
[320078880,1711139463787,-500.0,0.00022191,2]
[320078881,1711139463797,-500.0,0.00022191,2]
[320078882,1711139463806,-670.92,0.00022191,2]
[320078883,1711139463815,-500.0,0.00022191,2]
[320078884,1711139463825,-1534.88,0.00022191,2]
[320078885,1711139463834,-1805.68,0.00022191,2]
[320078886,1711139463845,-2209.08,0.00022191,2]
[320078887,1711139463855,-500.0,0.00022191,2]
[320078888,1711139463864,-500.0,0.00022191,2]
[320078889,1711139463874,-500.0,0.00022191,2]
[320078890,1711139463884,-1549.2,0.00022191,2]
[320078891,1711139463893,-500.0,0.00022191,2]
[320078892,1711139463903,-500.0,0.00022191,2]
[320078893,1711139463913,-500.0,0.00022191,2]
[320078894,1711139463923,-500.0,0.00022191,2]
[320078895,1711139463933,-165.0842449,0.00022191,2]
[320078896,1711139463943,-506.76272021,0.00022191,2]
[320078897,1711139463953,-2364.15,0.00022191,2]
[320078898,1711139463963,-500.0,0.00022191,2]
[320078899,1711139463973,-1100.33,0.00022191,2]
[320078900,1711139463983,-1938.15,0.00022191,2]
[320078901,1711139463993,-500.0,0.00022191,2]
[320078902,1711139464002,-504.00794655,0.00022191,2]
[320078903,1711139464014,-500.0,0.00022191,2]
[320078904,1711139464024,-501.98346426,0.00022191,2]
[320078905,1711139464033,-500.0,0.00022191,2]
[320078906,1711139464043,-500.0,0.00022191,2]
[320078907,1711139464054,-707.91,0.00022191,2]
[320078908,1711139464063,-500.0,0.00022191,2]
[320078909,1711139464073,-502.25574973,0.00022191,2]
[320078910,1711139464082,-500.0,0.00022191,2]
[320078911,1711139464094,-500.0,0.00022191,2]
[320078912,1711139464104,-978.31,0.00022191,2]
[320078913,1711139464114,-747.58,0.00022191,2]
[320078914,1711139464123,-1215.28,0.00022191,2]
[320078915,1711139464133,-2205.09,0.00022191,2]
[320078916,1711139464143,-500.0,0.00022191,2]
[320078917,1711139464152,-1268.26,0.00022191,2]
[320078918,1711139464161,-1677.81,0.00022191,2]
[320078919,1711139464171,-500.0,0.00022191,2]
[320078920,1711139464180,-500.0,0.00022191,2]
[320078921,1711139464190,-500.0,0.00022191,2]
[320078922,1711139464199,-500.0,0.00022191,2]
[320078923,1711139464209,-6511.15,0.00022191,2]
[320078924,1711139464218,-500.0,0.00022191,2]
[320078925,1711139464228,-624.28,0.00022191,2]
[320078926,1711139464237,-500.0,0.00022191,2]
[320078927,1711139464247,-500.0,0.00022191,2]
[320078928,1711139464256,-500.0,0.00022191,2]
[320078929,1711139464266,-500.0,0.00022191,2]
[320078930,1711139464275,-500.0,0.00022191,2]
[320078931,1711139464285,-500.0,0.00022191,2]
[320078932,1711139464294,-1600.9,0.00022191,2]
[320078933,1711139464304,-500.0,0.00022191,2]
[320078934,1711139464314,-1208.83,0.00022191,2]
[320078935,1711139464323,-500.0,0.00022191,2]
[320078936,1711139464333,-500.0,0.00022191,2]
[320078937,1711139464346,-857.53,0.00022191,2]
[320078938,1711139464356,-236.05717466,0.00022191,2]
[320078939,1711139464365,-590.95,0.00022191,2]
[320078940,1711139464374,-870.46,0.00022191,2]
[320078941,1711139464385,-500.0,0.00022191,2]
[320078942,1711139464395,-505.20180318,0.00022191,2]
[320078943,1711139464405,-500.0,0.00022191,2]
[320078944,1711139464414,-510.27,0.00022191,2]
[320078945,1711139464424,-641.79,0.00022191,2]
[320078946,1711139464434,-1523.31,0.00022191,2]
[320078947,1711139464443,-500.0,0.00022191,2]
[320078948,1711139464453,-500.0,0.00022191,2]
[320078949,1711139464462,-500.0,0.00022191,2]
[320078950,1711139464471,-1892.95,0.00022191,2]
[320078951,1711139464481,-500.0,0.00022191,2]
[320078952,1711139464490,-500.0,0.00022191,2]
[320078953,1711139464500,-502.70069143,0.00022191,2]
[320078954,1711139464509,-613.62,0.00022191,2]
[320078955,1711139464519,-500.0,0.00022191,2]
[320078956,1711139464529,-500.0,0.00022191,2]
[320078957,1711139464539,-500.0,0.00022191,2]
[320078958,1711139464549,-227.41919418,0.00022191,2]
[320078959,1711139464559,-500.0,0.00022191,2]
[320078960,1711139464569,-500.0,0.00022191,2]
[320078961,1711139464578,-500.0,0.00022191,2]
[320078962,1711139464591,-500.0,0.00022191,2]
[320078963,1711139464600,-500.0,0.00022191,2]
[320078964,1711139464686,-563.59,0.00022191,2]
[320078965,1711139464696,-1301.1,0.00022191,2]
[320078966,1711139464705,-1397.93,0.00022191,2]
[320078967,1711139464715,-1900.66,0.00022191,2]
[320078968,1711139464724,-500.0,0.00022191,2]
[320078969,1711139464733,-1168.71,0.00022191,2]
[320078970,1711139464743,-500.0,0.00022191,2]
[320078971,1711139464752,-500.0,0.00022191,2]
[320078972,1711139464762,-503.75,0.00022191,2]
[320078973,1711139464771,-574.33822566,0.00022191,2]
[320078974,1711139464780,-500.0,0.00022191,2]
[320078975,1711139464790,-500.0,0.00022191,2]
[320078976,1711139464800,-500.0,0.00022191,2]
[320078977,1711139464810,-500.0,0.00022191,2]
[320078978,1711139464819,-500.0,0.00022191,2]
[320078979,1711139464828,-500.0,0.00022191,2]
[320078980,1711139464840,-500.0,0.00022191,2]
[320078981,1711139464850,-500.0,0.00022191,2]
[320078982,1711139464860,-513.0,0.00022191,2]
[320078983,1711139464869,-1481.16,0.00022191,2]
[320078984,1711139464879,-500.0,0.00022191,2]
[320078985,1711139464888,-1126.04,0.00022191,2]
[320078986,1711139464897,-3036.46,0.00022191,2]
[320078987,1711139464907,-1148.09,0.00022191,2]
[320078988,1711139464916,-500.0,0.00022191,2]
[320078989,1711139464926,-234.01613844,0.00022191,2]
[320078990,1711139464935,-500.0,0.00022191,2]
[320078991,1711139464944,-780.98,0.00022191,2]
[320078992,1711139464953,-500.0,0.00022191,2]
[320078993,1711139464963,-500.0,0.00022191,2]
[320078994,1711139464972,-500.0,0.00022191,2]
[320078995,1711139464981,-500.0,0.00022191,2]
[320078996,1711139464991,-500.0,0.00022191,2]
[320078997,1711139465001,-500.0,0.00022191,2]
[320078998,1711139465011,-500.0,0.00022191,2]
[320078999,1711139465022,-1302.59,0.00022191,2]
[320079000,1711139465032,-500.0,0.00022191,2]
[320079001,1711139465042,-500.0,0.00022191,2]
[320079002,1711139465052,-500.0,0.00022191,2]
[320079003,1711139465062,-500.0,0.00022191,2]
[320079004,1711139465072,-1621.94,0.00022191,2]
[320079005,1711139465081,-2468.97,0.00022191,2]
[320079006,1711139465096,-500.0,0.00022191,2]
[320079007,1711139465106,-500.0,0.00022191,2]
[320079008,1711139465116,-1181.28,0.00022191,2]
[320079009,1711139465126,-625.96,0.00022191,2]
[320079010,1711139465136,-2660.23,0.00022191,2]
[320079011,1711139465145,-568.33,0.00022191,2]
[320079012,1711139465156,-500.0,0.00022191,2]
[320079013,1711139465166,-1563.28,0.00022191,2]
[320079014,1711139465176,-500.0,0.00022191,2]
[320079015,1711139465186,-500.0,0.00022191,2]
[320079016,1711139465195,-500.0,0.00022191,2]
[320079017,1711139465205,-500.0,0.00022191,2]
[320079018,1711139465215,-500.0,0.00022191,2]
[320079019,1711139465225,-1718.27,0.00022191,2]
[320079020,1711139465235,-505.61335181,0.00022191,2]
[320079021,1711139465245,-1527.81,0.00022191,2]
[320079022,1711139465256,-500.0,0.00022191,2]
[320079023,1711139465265,-893.84,0.00022191,2]
[320079024,1711139465275,-2066.53,0.00022191,2]
[320079025,1711139465285,-500.0,0.00022191,2]
[320079026,1711139465295,-500.0,0.00022191,2]
[320079027,1711139465304,-500.0,0.00022191,2]
[320079028,1711139465314,-502.31108942,0.00022191,2]
[320079029,1711139465324,-788.52,0.00022191,2]
[320079030,1711139465333,-500.0,0.00022191,2]
[320079031,1711139465345,-541.82,0.00022191,2]
[320079032,1711139465355,-500.0,0.00022191,2]
[320079033,1711139465364,-500.0,0.00022191,2]
[320079034,1711139465374,-505.21335235,0.00022191,2]
[320079035,1711139465384,-2408.15,0.00022191,2]
[320079036,1711139465393,-500.0,0.00022191,2]
[320079037,1711139465402,-893.85,0.00022191,2]
[320079038,1711139465412,-1014.84,0.00022191,2]
[320079039,1711139465422,-948.46,0.00022191,2]
[320079040,1711139465431,-500.0,0.00022191,2]
[320079041,1711139465441,-500.0,0.00022191,2]
[320079042,1711139465451,-792.38,0.00022191,2]
[320079043,1711139465461,-2671.56,0.00022191,2]
[320079044,1711139465471,-500.0,0.00022191,2]
[320079045,1711139465481,-2029.6,0.00022191,2]
[320079046,1711139465491,-607.71525584,0.00022191,2]
[320079047,1711139465501,-500.0,0.00022191,2]
[320079048,1711139465511,-1254.91,0.00022191,2]
[320079049,1711139465520,-500.0,0.00022191,2]
[320079050,1711139465530,-500.0,0.00022191,2]
[320079051,1711139465539,-500.0,0.00022191,2]
[320079052,1711139465549,-1616.39,0.00022191,2]
[320079053,1711139465560,-500.0,0.00022191,2]
[320079054,1711139465570,-566.27,0.00022191,2]
[320079055,1711139465579,-1195.1,0.00022191,2]
[320079056,1711139465590,-561.44,0.00022191,2]
[320079057,1711139465600,-500.0,0.00022191,2]
[320079058,1711139465610,-500.0,0.00022191,2]
[320079059,1711139465620,-1596.94,0.00022191,2]
[320079060,1711139465630,-1126.22,0.00022191,2]
[320079061,1711139465640,-2856.72,0.00022191,2]
[320079062,1711139465651,-500.0,0.00022191,2]
[320079063,1711139465661,-500.0,0.00022191,2]
[320079064,1711139465670,-726.52,0.00022191,2]
[320079065,1711139465680,-500.0,0.00022191,2]
[320079066,1711139465689,-500.0,0.00022191,2]
[320079067,1711139465699,-1123.15,0.00022191,2]
[320079068,1711139465709,-500.0,0.00022191,2]
[320079069,1711139465718,-3250.78,0.00022191,2]
[320079070,1711139465727,-503.73032173,0.00022191,2]
[320079071,1711139465737,-1374.63,0.00022191,2]
[320079072,1711139465747,-1580.05,0.00022191,2]
[320079073,1711139465756,-500.0,0.00022191,2]
[320079074,1711139465766,-500.0,0.00022191,2]
[320079075,1711139465776,-500.0,0.00022191,2]
[320079076,1711139465785,-2031.5,0.00022191,2]
[320079077,1711139465795,-500.8646388,0.00022191,2]
[320079078,1711139465805,-500.0,0.00022191,2]
[320079079,1711139465815,-500.0,0.00022191,2]
[320079080,1711139465824,-3873.9,0.00022191,2]
[320079081,1711139465833,-52091.15,0.00022191,2]
[320079082,1711139465844,-894.93,0.00022191,2]
[320079083,1711139465854,-1694.22,0.00022191,2]
[320079084,1711139465863,-500.0,0.00022191,2]
[320079085,1711139465873,-500.0,0.00022191,2]
[320079086,1711139465882,-500.0,0.00022191,2]
[320079087,1711139465892,-503.20050621,0.00022191,2]
[320079088,1711139465901,-1019.05,0.00022191,2]
[320079089,1711139465911,-644.62,0.00022191,2]
[320079090,1711139465920,-500.0,0.00022191,2]
[320079091,1711139465930,-2149.55,0.00022191,2]
[320079092,1711139465940,-1787.59,0.00022191,2]
[320079093,1711139465950,-3163.73,0.00022191,2]
[320079094,1711139465959,-1644.34,0.00022191,2]
[320079095,1711139465969,-504.95475144,0.00022191,2]
[320079096,1711139465979,-1266.34,0.00022191,2]
[320079097,1711139465989,-13902.85,0.00022191,2]
[320079098,1711139466000,-501.76125391,0.00022191,2]
[320079099,1711139466012,-500.0,0.00022191,2]
[320079100,1711139466025,-1124.78,0.00022191,2]
[320079101,1711139466035,-500.0,0.00022191,2]
[320079102,1711139466046,-1006.42,0.00022191,2]
[320079103,1711139466056,-736.92,0.00022191,2]
[320079104,1711139466066,-500.0,0.00022191,2]
[320079105,1711139466076,-500.0,0.00022191,2]
[320079106,1711139466086,-1100.56,0.00022191,2]
[320079107,1711139466098,-1580.52,0.00022191,2]
[320079108,1711139466109,-480.89703762,0.00022191,2]
[320079109,1711139466119,-530.98,0.00022191,2]
[320079110,1711139466129,-1321.98,0.00022191,2]
[320079111,1711139466140,-1643.02,0.00022191,2]
[320079112,1711139466150,-500.0,0.00022191,2]
[320079113,1711139466160,-3118.01,0.00022191,2]
[320079114,1711139466171,-1303.59,0.00022191,2]
[320079115,1711139466181,-869.66,0.00022191,2]
[320079116,1711139466192,-500.0,0.00022191,2]
[320079117,1711139466203,-1519.6,0.00022191,2]
[320079118,1711139466214,-500.0,0.00022191,2]
[320079119,1711139466224,-258.49540974,0.00022191,2]
[320079120,1711139466234,-500.0,0.00022191,2]
[320079121,1711139466245,-1879.7,0.00022191,2]
[320079122,1711139466255,-500.0,0.00022191,2]
[320079123,1711139466267,-500.0,0.00022191,2]
[320079124,1711139466277,-500.0,0.00022191,2]
[320079125,1711139466288,-968.97,0.00022191,2]
[320079126,1711139466298,-1324.46,0.00022191,2]
[320079127,1711139466309,-672.73,0.00022191,2]
[320079128,1711139466320,-500.0,0.00022191,2]
[320079129,1711139466331,-3495.88,0.00022191,2]
[320079130,1711139466344,-706.88,0.00022191,2]
[320079131,1711139466355,-500.0,0.00022191,2]
[320079132,1711139466365,-737.16,0.00022191,2]
[320079133,1711139466375,-500.0,0.00022191,2]
[320079134,1711139466385,-500.0,0.00022191,2]
[320079135,1711139466396,-2215.21,0.00022191,2]
[320079136,1711139466406,-501.3869597,0.00022191,2]
[320079137,1711139466417,-6600.21,0.00022191,2]
[320079138,1711139466427,-2191.46,0.00022191,2]
[320079139,1711139466438,-500.0,0.00022191,2]
[320079140,1711139466448,-501.83572049,0.00022191,2]
[320079141,1711139466458,-500.0,0.00022191,2]
[320079142,1711139466468,-554.98,0.00022191,2]
[320079143,1711139466478,-500.0,0.00022191,2]
[320079144,1711139466488,-774.68,0.00022191,2]
[320079145,1711139466498,-500.0,0.00022191,2]
[320079146,1711139466508,-500.0,0.00022191,2]
[320079147,1711139466518,-500.0,0.00022191,2]
[320079148,1711139466527,-1458.26,0.00022191,2]
[320079149,1711139466537,-1303.22,0.00022191,2]
[320079150,1711139466547,-2823.43,0.00022191,2]
[320079151,1711139466557,-2227.68,0.00022191,2]
[320079152,1711139466567,-500.0,0.00022191,2]
[320079153,1711139466577,-2025.48,0.00022191,2]
[320079154,1711139466586,-25829.61,0.00022191,2]
[320079155,1711139466598,-500.0,0.00022191,2]
[320079156,1711139466607,-500.0,0.00022191,2]
[320079157,1711139466617,-495.85348171,0.00022191,2]
[320079158,1711139466626,-1970.48,0.00022191,2]
[320079159,1711139466636,-1642.57,0.00022191,2]
[320079160,1711139466646,-738.39,0.00022191,2]
[320079161,1711139466656,-652.47,0.00022191,2]
[320079162,1711139466666,-1331.44,0.00022191,2]
[320079163,1711139466676,-719.23,0.00022191,2]
[320079164,1711139466685,-500.0,0.00022191,2]
[320079165,1711139466694,-2337.31,0.00022191,2]
[320079166,1711139466704,-500.0,0.00022191,2]
[320079167,1711139466714,-591.61,0.00022191,2]
[320079168,1711139466724,-502.71609868,0.00022191,2]
[320079169,1711139466734,-500.0,0.00022191,2]
[320079170,1711139466744,-570.35,0.00022191,2]
[320079171,1711139466754,-500.0,0.00022191,2]
[320079172,1711139466764,-500.0,0.00022191,2]
[320079173,1711139466773,-504.65154294,0.00022191,2]
[320079174,1711139466783,-502.94773278,0.00022191,2]
[320079175,1711139466792,-682.95,0.00022191,2]
[320079176,1711139466802,-2947.01,0.00022191,2]
[320079177,1711139466812,-500.0,0.00022191,2]
[320079178,1711139466822,-3852.55,0.00022191,2]
[320079179,1711139466832,-4350.09,0.00022191,2]
[320079180,1711139466842,-838.77,0.00022191,2]
[320079181,1711139466851,-2668.36,0.00022191,2]
[320079182,1711139466861,-639.98,0.00022191,2]
[320079183,1711139466870,-500.0,0.00022191,2]
[320079184,1711139466880,-500.0,0.00022191,2]
[320079185,1711139466890,-504.57295874,0.00022191,2]
[320079186,1711139466901,-500.0,0.00022191,2]
[320079187,1711139466911,-4723.97,0.00022191,2]
[320079188,1711139466921,-500.0,0.00022191,2]
[320079189,1711139466931,-500.0,0.00022191,2]
[320079190,1711139466941,-3043.68,0.00022191,2]
[320079191,1711139466950,-2221.54,0.00022191,2]
[320079192,1711139466960,-1569.77,0.00022191,2]
[320079193,1711139466969,-502.12612015,0.00022191,2]
[320079194,1711139466980,-2236.55,0.00022191,2]
[320079195,1711139466990,-1119.7,0.00022191,2]
[320079196,1711139467000,-1294.51,0.00022191,2]
[320079197,1711139467010,-500.0,0.00022191,2]
[320079198,1711139467023,-3554.27,0.00022191,2]
[320079199,1711139467033,-500.0,0.00022191,2]
[320079200,1711139467043,-500.0,0.00022191,2]
[320079201,1711139467053,-989.17,0.00022191,2]
[320079202,1711139467063,-8504.76,0.00022191,2]
[320079203,1711139467073,-1807.17,0.00022191,2]
[320079204,1711139467083,-500.0,0.00022191,2]
[320079205,1711139467096,-500.0,0.00022191,2]
[320079206,1711139467106,-787.39,0.00022191,2]
[320079207,1711139467117,-2677.32,0.00022191,2]
[320079208,1711139467126,-500.0,0.00022191,2]
[320079209,1711139467136,-3225.53,0.00022191,2]
[320079210,1711139467146,-623.11,0.00022191,2]
[320079211,1711139467157,-8524.41,0.00022191,2]
[320079212,1711139467166,-500.0,0.00022191,2]
[320079213,1711139467176,-2529.53,0.00022191,2]
[320079214,1711139467186,-510.90388546,0.00022191,2]
[320079215,1711139467195,-502.51305665,0.00022191,2]
[320079216,1711139467205,-9067.87,0.00022191,2]
[320079217,1711139467217,-500.0,0.00022191,2]
[320079218,1711139467227,-500.0,0.00022191,2]
[320079219,1711139467237,-501.40208282,0.00022191,2]
[320079220,1711139467247,-615.8477622,0.00022191,2]
[320079221,1711139467257,-4392.39,0.00022191,2]
[320079222,1711139467266,-506.04277017,0.00022191,2]
[320079223,1711139467276,-1031.34,0.00022191,2]
[320079224,1711139467285,-504.62565486,0.00022191,2]
[320079225,1711139467295,-1578.78,0.00022191,2]
[320079226,1711139467304,-4596.99,0.00022191,2]
[320079227,1711139467313,-1385.51,0.00022191,2]
[320079228,1711139467323,-500.0,0.00022191,2]
[320079229,1711139467333,-500.0,0.00022191,2]
[320079230,1711139467345,-500.0,0.00022191,2]
[320079231,1711139467355,-2954.56,0.00022191,2]
[320079232,1711139467366,-1011.99,0.00022191,2]
[320079233,1711139467376,-500.0,0.00022191,2]
[320079234,1711139467386,-949.88,0.00022191,2]
[320079235,1711139467397,-3417.46,0.00022191,2]
[320079236,1711139467407,-5407.81,0.00022191,2]
[320079237,1711139467419,-500.0,0.00022191,2]
[320079238,1711139467429,-3344.85,0.00022191,2]
[320079239,1711139467439,-500.0,0.00022191,2]
[320079240,1711139467449,-500.0,0.00022191,2]
[320079241,1711139467459,-500.0,0.00022191,2]
[320079242,1711139467469,-500.0,0.00022191,2]
[320079243,1711139467479,-751.22,0.00022191,2]
[320079244,1711139467489,-3514.71,0.00022191,2]
[320079245,1711139467499,-1430.18,0.00022191,2]
[320079246,1711139467509,-1983.16,0.00022191,2]
[320079247,1711139467519,-2805.84,0.00022191,2]
[320079248,1711139467530,-500.0,0.00022191,2]
[320079249,1711139467540,-3105.09,0.00022191,2]
[320079250,1711139467549,-500.0,0.00022191,2]
[320079251,1711139467559,-11888.04,0.00022191,2]
[320079252,1711139467569,-500.0,0.00022191,2]
[320079253,1711139467579,-500.0,0.00022191,2]
[320079254,1711139467590,-500.0,0.00022191,2]
[320079255,1711139467600,-1092.09,0.00022191,2]
[320079256,1711139467609,-500.0,0.00022191,2]
[320079257,1711139467619,-6093.5,0.00022191,2]
[320079258,1711139467629,-1128.65,0.00022191,2]
[320079259,1711139467638,-500.0,0.00022191,2]
[320079260,1711139467648,-500.0,0.00022191,2]
[320079261,1711139467658,-2463.43,0.00022191,2]
[320079262,1711139467670,-500.0,0.00022191,2]
[320079263,1711139467679,-16783.76,0.00022191,2]
[320079264,1711139467690,-2578.15,0.00022191,2]
[320079265,1711139467700,-3621.47,0.00022191,2]
[320079266,1711139467709,-500.0,0.00022191,2]
[320079267,1711139467719,-402.40319472,0.00022191,2]
[320079268,1711139467728,-17844.99,0.00022191,2]
[320079269,1711139467738,-1620.58,0.00022191,2]
[320079270,1711139467747,-500.0,0.00022191,2]
[320079271,1711139467757,-500.0,0.00022191,2]
[320079272,1711139467766,-500.0,0.00022191,2]
[320079273,1711139467776,-1030.69,0.00022191,2]
[320079274,1711139467786,-500.0,0.00022191,2]
[320079275,1711139467795,-897.44,0.00022191,2]
[320079276,1711139467805,-2469.18,0.00022191,2]
[320079277,1711139467818,-500.0,0.00022191,2]
[320079278,1711139467828,-2966.65,0.00022191,2]
[320079279,1711139467840,-500.0,0.00022191,2]
[320079280,1711139467849,-4434.74,0.00022191,2]
[320079281,1711139467859,-746.3,0.00022191,2]
[320079282,1711139467869,-2313.98,0.00022191,2]
[320079283,1711139467879,-1352.37,0.00022191,2]
[320079284,1711139467891,-859.54,0.00022191,2]
[320079285,1711139467902,-2833.08,0.00022191,2]
[320079286,1711139467912,-500.0,0.00022191,2]
[320079287,1711139467922,-2024.04,0.00022191,2]
[320079288,1711139467932,-5814.09,0.00022191,2]
[320079289,1711139467941,-1312.35,0.00022191,2]
[320079290,1711139467951,-2389.48,0.00022191,2]
[320079291,1711139467963,-501.05932805,0.00022191,2]
[320079292,1711139467973,-2421.81,0.00022191,2]
[320079293,1711139467983,-10482.87,0.00022191,2]
[320079294,1711139467992,-1745.38,0.00022191,2]
[320079295,1711139468003,-1568.16,0.00022191,2]
[320079296,1711139468013,-7803.02,0.00022191,2]
[320079297,1711139468026,-500.0,0.00022191,2]
[320079298,1711139468036,-11587.27,0.00022191,2]
[320079299,1711139468046,-2463.37,0.00022191,2]
[320079300,1711139468055,-2627.03,0.00022191,2]
[320079301,1711139468065,-500.0,0.00022191,2]
[320079302,1711139468074,-500.0,0.00022191,2]
[320079303,1711139468085,-23759.53,0.00022191,2]
[320079304,1711139468096,-500.0,0.00022191,2]
[320079305,1711139468107,-3378.66,0.00022191,2]
[320079306,1711139468118,-1877.48,0.00022191,2]
[320079307,1711139468128,-508.40489383,0.00022191,2]
[320079308,1711139468138,-1690.64,0.00022191,2]
[320079309,1711139468148,-500.0,0.00022191,2]
[320079310,1711139468158,-3284.57,0.00022191,2]
[320079311,1711139468167,-607.88,0.00022191,2]
[320079312,1711139468178,-504.04799617,0.00022191,2]
[320079313,1711139468187,-1522.43,0.00022191,2]
[320079314,1711139468197,-5110.8,0.00022191,2]
[320079315,1711139468206,-3160.28,0.00022191,2]
[320079316,1711139468217,-1462.18,0.00022191,2]
[320079317,1711139468227,-500.0,0.00022191,2]
[320079318,1711139468237,-1045.31,0.00022191,2]
[320079319,1711139468246,-500.0,0.00022191,2]
[320079320,1711139468257,-597.58,0.00022191,2]
[320079321,1711139468267,-500.0,0.00022191,2]
[320079322,1711139468277,-5812.38,0.00022191,2]
[320079323,1711139468287,-500.0,0.00022191,2]
[320079324,1711139468297,-504.74583126,0.00022191,2]
[320079325,1711139468507,-1485.3,0.00022191,2]
[320079326,1711139468524,-3855.88,0.00022191,2]
[320079327,1711139468535,-500.0,0.00022191,2]
[320079328,1711139468545,-500.0,0.00022191,2]
[320079329,1711139468555,-2611.48,0.00022191,2]
[320079330,1711139468564,-2037.66,0.00022191,2]
[320079331,1711139468574,-1334.45,0.00022191,2]
[320079332,1711139468583,-3267.38,0.00022191,2]
[320079333,1711139468598,-587.29729346,0.00022191,2]
[320079334,1711139468607,-1097.15,0.00022191,2]
[320079335,1711139468616,-500.0,0.00022191,2]
[320079336,1711139468626,-1185.7,0.00022191,2]
[320079337,1711139468636,-494.55145231,0.00022191,2]
[320079338,1711139468646,-500.0,0.00022191,2]
[320079339,1711139468655,-1424.77,0.00022191,2]
[320079340,1711139468665,-5743.09,0.00022191,2]
[320079341,1711139468674,-2468.12,0.00022191,2]
[320079342,1711139468684,-504.60370059,0.00022191,2]
[320079343,1711139468693,-2313.54,0.00022191,2]
[320079344,1711139468702,-500.0,0.00022191,2]
[320079345,1711139468711,-1233.57,0.00022191,2]